bitfinex/quotes_BTCUSD_20250331
["timestamp","ask_amount","ask_price","bid_price","bid_amount"]
[1743419058817,0.0001,82293.0,82292.0,0.44733986]
[1743419059548,0.0001,82293.0,82292.0,0.45949086]
[1743419059989,0.0001,82293.0,82292.0,0.20430386]
[1743419060187,0.0001,82293.0,82292.0,0.44733986]
[1743419060375,0.0001,82293.0,82292.0,0.20430386]
[1743419060771,0.0001,82293.0,82292.0,0.44733986]
[1743419061375,0.0001,82293.0,82292.0,0.45949086]
[1743419063347,0.0001,82293.0,82292.0,0.45749086]
[1743419063756,0.0001,82293.0,82292.0,0.45849086]
[1743419063956,0.0001,82293.0,82292.0,0.46049086]
[1743419068024,0.0001,82293.0,82292.0,0.44833986]
[1743419068242,0.255285,82293.0,82292.0,0.35046386]
[1743419068440,0.255285,82293.0,82292.0,0.20530386]
[1743419068597,0.255285,82293.0,82292.0,0.27276386]
[1743419069238,0.255285,82293.0,82292.0,0.26976386]
[1743419069840,0.255285,82293.0,82292.0,0.27176386]
[1743419070042,0.255285,82293.0,82292.0,0.12660386]
[1743419070205,0.255285,82293.0,82292.0,0.004]
[1743419071010,0.243134,82293.0,82292.0,0.12660386]
[1743419071432,0.255285,82293.0,82292.0,0.12660386]
[1743419074663,0.0001,82293.0,82292.0,0.12660386]
[1743419074897,0.0001,82293.0,82292.0,0.38179086]
[1743419079027,0.243134,82293.0,82292.0,0.12660386]
[1743419079226,0.0001,82293.0,82292.0,0.12660386]
[1743419079431,0.0001,82293.0,82292.0,0.36963986]
[1743419079689,0.0001,82293.0,82292.0,0.38179086]
[1743419079852,0.0001,82293.0,82292.0,0.36963986]
[1743419080182,0.0001,82293.0,82292.0,0.12660386]
[1743419080420,0.0001,82293.0,82292.0,0.36963986]
[1743419081069,0.0001,82293.0,82292.0,0.38179086]
[1743419082920,0.0001,82293.0,82292.0,0.45929086]
[1743419083497,0.0001,82293.0,82292.0,0.45729086]
[1743419083705,0.0001,82293.0,82292.0,0.45529086]
[1743419084051,0.0001,82293.0,82292.0,0.45929086]
[1743419085340,0.0001,82293.0,82292.0,0.45729086]
[1743419085542,0.0001,82293.0,82292.0,0.46029086]
[1743419085910,0.0001,82293.0,82292.0,0.50809086]
[1743419086122,0.0001,82293.0,82292.0,0.51109086]
[1743419086978,0.0001,82293.0,82292.0,0.50509086]
[1743419087213,0.0001,82293.0,82292.0,0.50909086]
[1743419087415,0.0001,82293.0,82292.0,0.51209086]
[1743419091430,0.243134,82293.0,82292.0,0.12960386]
[1743419091679,0.255285,82293.0,82292.0,0.12960386]
[1743419091846,0.26729573,82293.0,82292.0,0.27468386]
[1743419092053,0.26729573,82293.0,82292.0,0.12960386]
[1743419092321,0.31318034,82293.0,82292.0,0.007]
[1743419092512,0.26729573,82293.0,82292.0,0.007]
[1743419092704,0.26729573,82293.0,82292.0,0.003]
[1743419092705,0.27868503,82293.0,82292.0,0.003]
[1743419093088,0.255197,82289.0,82288.0,0.63098044]
[1743419093286,0.255197,82289.0,82288.0,0.7535843]
[1743419093705,0.02350003,82293.0,82292.0,0.0774]
[1743419094055,0.0001,82293.0,82292.0,0.45519086]
[1743419095248,0.0001,82293.0,82292.0,0.12260386]
[1743419095655,0.0001,82293.0,82292.0,0.37979086]
[1743419095833,0.0001,82293.0,82292.0,0.52487086]
[1743419095992,0.0001,82293.0,82292.0,0.52687086]
[1743419098283,0.0001,82293.0,82292.0,1.75024713]
[1743419098848,0.0001,82293.0,82292.0,1.74824713]
[1743419099051,0.0001,82293.0,82292.0,1.74924713]
[1743419099253,0.0001,82293.0,82292.0,1.75224713]
[1743419099456,0.0001,82293.0,82292.0,2.38312713]
[1743419100623,0.243134,82293.0,82292.0,0.75948386]
[1743419100832,0.0001,82293.0,82292.0,0.90456386]
[1743419101017,0.0001,82293.0,82292.0,1.14759986]
[1743419101218,0.0001,82293.0,82292.0,1.15975086]
[1743419101780,0.0001,82293.0,82292.0,1.14459986]
[1743419102021,0.0001,82293.0,82292.0,1.15675086]
[1743419102215,0.0001,82293.0,82292.0,1.15375086]
[1743419102673,0.0001,82293.0,82292.0,1.15575086]
[1743419102884,0.0001,82293.0,82292.0,1.15571086]
[1743419103855,0.0001,82293.0,82292.0,1.15771086]
[1743419105836,0.0001,82293.0,82292.0,1.15571086]
[1743419106038,0.0001,82293.0,82292.0,1.15371086]
[1743419106591,0.0001,82293.0,82292.0,1.15671086]
[1743419107503,0.0001,82293.0,82292.0,1.15971086]
[1743419110170,0.0001,82293.0,82292.0,0.90452386]
[1743419110171,0.243134,82293.0,82292.0,0.90452386]
[1743419110369,0.0001,82293.0,82292.0,0.90452386]
[1743419110569,0.0001,82293.0,82292.0,1.15971086]
[1743419110688,0.0001,82293.0,82292.0,1.15671086]
[1743419111031,0.0001,82293.0,82292.0,0.89852386]
[1743419111434,0.0001,82293.0,82292.0,1.14455986]
[1743419111850,0.0001,82293.0,82292.0,1.14155986]
[1743419112064,0.0001,82293.0,82292.0,1.14355986]
[1743419112520,0.0001,82293.0,82292.0,0.63288]
[1743419112521,0.255285,82293.0,82292.0,0.63288]
[1743419112737,0.26982585,82293.0,82292.0,0.63488]
[1743419112911,0.0001,82293.0,82292.0,0.63488]
[1743419113336,0.0001,82293.0,82292.0,0.877916]
[1743419113496,0.0001,82293.0,82292.0,0.890067]
[1743419113693,0.0001,82293.0,82292.0,1.09067086]
[1743419113897,0.0114931,82293.0,82292.0,1.09067086]
[1743419115400,0.0001,82293.0,82292.0,1.09067086]
[1743419117645,0.0001,82293.0,82292.0,1.08867086]
[1743419118052,0.0001,82293.0,82292.0,1.09167086]
[1743419118446,0.0001,82293.0,82292.0,1.08867086]
[1743419119012,0.0001,82293.0,82292.0,1.08667086]
[1743419119215,0.0001,82293.0,82292.0,0.75648386]
[1743419119550,0.25452903,82293.0,82292.0,0.90148386]
[1743419119756,0.01149503,82293.0,82292.0,0.99951986]
[1743419120105,0.01149503,82293.0,82292.0,0.90448386]
[1743419120262,0.26668003,82293.0,82292.0,0.75948386]
[1743419120521,0.26668003,82293.0,82292.0,0.75648386]
[1743419120685,0.26668003,82293.0,82292.0,0.63388]
[1743419120888,0.26668003,82293.0,82292.0,0.63588]
[1743419121273,0.01149503,82293.0,82292.0,0.75848386]
[1743419121661,0.01149503,82293.0,82292.0,1.00151986]
[1743419121864,0.03429123,82293.0,82292.0,1.00151986]
[1743419122066,0.03429123,82293.0,82292.0,0.99851986]
[1743419122528,0.03429123,82293.0,82292.0,1.00051986]
[1743419122734,0.03429123,82293.0,82292.0,1.15767086]
[1743419124263,0.03429123,82293.0,82292.0,0.90248386]
[1743419124472,0.03429123,82293.0,82292.0,1.14551986]
[1743419124762,0.03429123,82293.0,82292.0,1.15767086]
[1743419125812,0.03429123,82293.0,82292.0,1.23667086]
[1743419126371,0.02364603,82293.0,82292.0,0.75748386]
[1743419126590,0.02364603,82293.0,82292.0,0.90248386]
[1743419126591,0.26668003,82293.0,82292.0,0.90248386]
[1743419126723,0.26668003,82293.0,82292.0,0.63488]
[1743419131062,0.28122088,82293.0,82292.0,0.63488]
[1743419131250,0.36714437,82293.0,82292.0,0.63488]
[1743419131461,0.36714437,82293.0,82292.0,0.64990416]
[1743419131825,0.36714437,82293.0,82292.0,0.01902416]
[1743419131826,0.70514232,82293.0,82292.0,0.01902416]
[1743419132035,1.72746332,82293.0,82292.0,0.004]
[1743419132244,0.255247,82273.0,82272.0,0.14496]
[1743419132866,0.28942494,82273.0,82272.0,0.14496]
[1743419133530,0.255268,82266.0,82265.0,0.63092]
[1743419133739,0.255268,82266.0,82265.0,0.9136695]
[1743419133984,0.26666303,82266.0,82265.0,0.9136695]
[1743419134431,0.25450803,82266.0,82265.0,0.9136695]
[1743419134766,0.27729094,82266.0,82265.0,0.9136695]
[1743419135214,0.27729094,82266.0,82265.0,0.8886695]
[1743419135658,0.28944594,82266.0,82265.0,0.8976695]
[1743419135873,0.27863746,82266.0,82265.0,0.8976695]
[1743419136034,0.27863746,82266.0,82265.0,0.91270186]
[1743419136231,0.27863746,82266.0,82265.0,0.91470186]
[1743419136456,0.27863746,82266.0,82265.0,0.91770186]
[1743419137986,0.29317831,82266.0,82265.0,0.650138]
[1743419138201,0.31590652,82266.0,82265.0,0.044218]
[1743419138352,0.31590652,82266.0,82265.0,0.02903236]
[1743419138553,0.31590652,82266.0,82265.0,0.02018564]
[1743419138754,0.31590652,82266.0,82265.0,0.002]
[1743419138959,0.31590652,82266.0,82258.0,0.14496]
[1743419138960,0.25529,82259.0,82258.0,0.14496]
[1743419139154,0.25529,82259.0,82258.0,0.29176423]
[1743419139155,0.243134,82259.0,82258.0,0.29176423]
[1743419139368,0.243134,82259.0,82258.0,0.30694987]
[1743419139926,0.26668503,82259.0,82258.0,0.30694987]
[1743419140144,0.26668503,82259.0,82258.0,0.18434601]
[1743419140565,0.28941324,82259.0,82258.0,0.03938601]
[1743419140983,0.28941324,82259.0,82258.0,0.02420037]
[1743419141159,0.28941324,82259.0,82258.0,0.03958094]
[1743419142972,0.28941324,82259.0,82258.0,0.02420037]
[1743419143209,0.28941324,82259.0,82258.0,0.03958094]
[1743419143649,0.30395409,82259.0,82258.0,0.03958094]
[1743419144001,0.27725724,82259.0,82258.0,0.03958094]
[1743419144204,0.03412324,82259.0,82258.0,0.03958094]
[1743419144610,0.27725724,82259.0,82258.0,0.03958094]
[1743419144811,0.28941324,82259.0,82258.0,0.03958094]
[1743419145186,0.28941324,82259.0,82258.0,0.02420037]
[1743419145715,0.26668503,82259.0,82258.0,0.02420037]
[1743419146148,0.38447958,82259.0,82258.0,0.02420037]
[1743419146447,0.255312,82252.0,82251.0,0.63104]
[1743419146602,0.255312,82252.0,82251.0,0.64642748]
[1743419146803,0.27799713,82252.0,82251.0,0.64642748]
[1743419147027,0.28939216,82252.0,82251.0,0.64642748]
[1743419147235,0.28939216,82252.0,82251.0,0.01538748]
[1743419147236,0.68393373,82252.0,82251.0,0.01538748]
[1743419147419,0.255322,82249.0,82248.0,0.00010798]
[1743419147613,0.35156285,82249.0,82248.0,0.00010798]
[1743419147815,0.36046847,82249.0,82248.0,0.00010798]
[1743419148045,0.49446736,82249.0,82248.0,0.00010798]
[1743419148259,0.51715249,82249.0,82248.0,0.00010798]
[1743419149037,0.51915249,82249.0,82248.0,0.00010798]
[1743419149692,0.52115249,82249.0,82248.0,0.00010798]
[1743419150268,0.93455249,82249.0,82248.0,0.00010798]
[1743419150473,1.29908997,82249.0,82248.0,9.8e-07]
[1743419152133,1.29708997,82249.0,82248.0,9.8e-07]
[1743419152338,0.555358,82237.0,82231.0,0.0241892]
[1743419152582,0.69250271,82237.0,82236.0,0.00214053]
[1743419152818,1.23170271,82237.0,82236.0,5.3e-07]
[1743419153065,1.2621383,82237.0,82236.0,5.3e-07]
[1743419154287,1.2651383,82237.0,82236.0,5.3e-07]
[1743419154797,1.2621383,82237.0,82236.0,5.3e-07]
[1743419155061,1.2671383,82237.0,82236.0,5.3e-07]
[1743419155522,1.2651383,82237.0,82236.0,5.3e-07]
[1743419155752,1.2671383,82237.0,82236.0,5.3e-07]
[1743419156218,1.39474216,82237.0,82236.0,5.3e-07]
[1743419156455,0.555405,82222.0,82214.0,0.02413561]
[1743419156690,0.56994585,82222.0,82221.0,0.00404674]
[1743419156929,0.69859285,82222.0,82221.0,0.00404674]
[1743419157148,0.71763719,82222.0,82221.0,0.00404674]
[1743419157407,0.58899019,82222.0,82221.0,0.00404674]
[1743419157645,0.57294585,82222.0,82221.0,0.00404674]
[1743419157884,0.56980003,82222.0,82221.0,0.00404674]
[1743419158112,0.57280003,82222.0,82221.0,0.00404674]
[1743419158343,0.59542818,82222.0,82221.0,0.00404674]
[1743419159582,0.57280003,82222.0,82221.0,0.00404674]
[1743419160764,0.58212933,82222.0,82221.0,0.00404674]
[1743419163365,0.59667018,82222.0,82221.0,0.00404674]
[1743419164176,0.61931827,82222.0,82221.0,0.00404674]
[1743419165456,1.03271827,82222.0,82221.0,0.00384436]
[1743419165658,1.15120756,82222.0,82221.0,0.00384436]
[1743419168239,2.26753056,82222.0,82221.0,3.6e-07]
[1743419168376,1.15120756,82222.0,82221.0,3.6e-07]
[1743419168778,1.14820756,82222.0,82221.0,3.6e-07]
[1743419169076,0.255452,82207.0,82205.0,0.71078]
[1743419169276,0.255452,82207.0,82206.0,0.00246781]
[1743419169498,0.255452,82207.0,82206.0,0.01564875]
[1743419170168,0.27810009,82207.0,82206.0,0.03961338]
[1743419170376,0.28993027,82207.0,82206.0,0.03961338]
[1743419170576,0.3013253,82207.0,82206.0,0.03961338]
[1743419170853,0.27867721,82207.0,82206.0,0.04161338]
[1743419171071,0.26651321,82207.0,82206.0,0.04161338]
[1743419171273,0.27867721,82207.0,82206.0,0.04161338]
[1743419172229,0.27877721,82207.0,82206.0,0.04161338]
[1743419172634,0.26738218,82207.0,82206.0,0.02843244]
[1743419174787,0.27873672,82207.0,82206.0,0.02843244]
[1743419175204,0.38202739,82207.0,82206.0,0.02843244]
[1743419175531,0.68202739,82207.0,82206.0,0.02843244]
[1743419175645,0.56738218,82207.0,82206.0,0.02843244]
[1743419176254,0.58192303,82207.0,82206.0,0.02843244]
[1743419176488,0.58192303,82207.0,82206.0,0.02743244]
[1743419176681,0.58292303,82207.0,82206.0,0.02743244]
[1743419176877,1.07402303,82207.0,82206.0,8.1e-07]
[1743419177057,0.255492,82194.0,82193.0,0.6316]
[1743419177269,0.555492,82194.0,82193.0,0.6448554]
[1743419177492,0.555492,82194.0,82193.0,0.03702451]
[1743419177879,0.57003285,82194.0,82193.0,0.03702451]
[1743419178083,0.555498,82192.0,82191.0,0.004]
[1743419178888,0.56686914,82192.0,82191.0,0.004]
[1743419179373,0.58962889,82192.0,82191.0,0.004]
[1743419179708,0.255536,82180.0,82179.0,0.1257]
[1743419179941,0.255536,82180.0,82179.0,0.10334664]
[1743419180139,0.255536,82180.0,82179.0,0.11664005]
[1743419180559,0.255536,82180.0,82179.0,0.10334664]
[1743419180760,0.243366,82181.0,82179.0,0.10334664]
[1743419180761,0.01137114,82192.0,82179.0,0.2259505]
[1743419180997,0.243365,82181.0,82180.0,0.12260386]
[1743419181199,0.243365,82181.0,82180.0,0.13589727]
[1743419185015,0.63492896,82181.0,82180.0,0.01329341]
[1743419185411,0.63492896,82181.0,82179.0,0.02448725]
[1743419185412,0.555536,82180.0,82179.0,0.02448725]
[1743419185963,0.55544895,82180.0,82179.0,0.02448725]
[1743419186162,0.3,82180.0,82179.0,0.22709111]
[1743419186371,0.543368,82180.0,82179.0,0.28614844]
[1743419187390,0.544368,82180.0,82179.0,0.28614844]
[1743419187707,0.545368,82180.0,82179.0,0.28614844]
[1743419188328,0.557536,82180.0,82179.0,0.11784458]
[1743419188765,0.557536,82180.0,82179.0,0.10448725]
[1743419188974,0.6689786,82180.0,82179.0,0.02448725]
[1743419189416,0.557536,82180.0,82179.0,0.02448725]
[1743419193330,0.58028564,82180.0,82179.0,0.02448725]
[1743419193519,0.59166046,82180.0,82179.0,0.02448725]
[1743419195835,0.58028564,82180.0,82179.0,0.02448725]
[1743419196786,0.557536,82180.0,82179.0,0.02448725]
[1743419196971,0.6689786,82180.0,82179.0,0.02448725]
[1743419201099,0.557536,82180.0,82179.0,0.02448725]
[1743419203822,0.557536,82180.0,82179.0,0.10088725]
[1743419203823,0.545368,82180.0,82179.0,0.10088725]
[1743419204023,0.545368,82180.0,82179.0,0.22349111]
[1743419204241,0.557536,82180.0,82179.0,0.22349111]
[1743419204441,0.557536,82180.0,82179.0,0.23696752]
[1743419205984,0.557536,82180.0,82179.0,0.16056752]
[1743419206180,0.64963792,82180.0,82179.0,0.03796366]
[1743419206502,0.64963792,82180.0,82179.0,0.02448725]
[1743419206503,0.557536,82180.0,82179.0,0.02448725]
[1743419212983,0.545368,82180.0,82179.0,0.02448725]
[1743419213175,0.545368,82180.0,82179.0,0.10358725]
[1743419213395,0.557536,82180.0,82179.0,0.10358725]
[1743419215031,0.557536,82180.0,82179.0,0.02448725]
[1743419216921,0.67088401,82180.0,82179.0,0.02448725]
[1743419217092,0.552536,82180.0,82179.0,0.02448725]
[1743419217932,0.552536,82180.0,82179.0,0.01810005]
[1743419220187,0.552536,82180.0,82179.0,0.14070391]
[1743419223052,0.552536,82180.0,82179.0,0.01810005]
[1743419223653,0.59058985,82180.0,82179.0,0.01810005]
[1743419223857,0.70533784,82180.0,82179.0,0.01810005]
[1743419224637,0.70533784,82180.0,82179.0,0.00014061]
[1743419227285,0.71987869,82180.0,82179.0,0.00014061]
[1743419229539,0.71887869,82180.0,82179.0,0.00014061]
[1743419229675,0.72187869,82180.0,82179.0,0.00014061]
[1743419230119,0.72487869,82180.0,82179.0,0.00014061]
[1743419230528,0.74393389,82180.0,82179.0,6.1e-07]
[1743419230925,0.012168,82177.0,82176.0,6.1e-07]
[1743419231132,0.6871397,82177.0,82176.0,6.1e-07]
[1743419231334,0.6871397,82177.0,82146.0,0.002]
[1743419231335,0.255638,82147.0,82146.0,0.002]
[1743419231535,0.255638,82147.0,82146.0,0.00214065]
[1743419231757,0.555638,82147.0,82146.0,0.02612651]
[1743419232024,0.62804806,82147.0,82146.0,0.02612651]
[1743419232226,0.555638,82147.0,82146.0,0.02612651]
[1743419232452,0.56775942,82147.0,82146.0,0.02612651]
[1743419232659,0.56775942,82147.0,82146.0,0.14873037]
[1743419232660,0.55558642,82147.0,82146.0,0.14873037]
[1743419232871,0.0190611,82153.0,82147.0,0.0831]
[1743419233078,0.243459,82150.0,82148.0,0.12260386]
[1743419233285,0.24346,82149.0,82148.0,0.13621564]
[1743419234536,0.24346,82149.0,82148.0,0.12260386]
[1743419235596,0.243439,82156.0,82150.0,0.012172]
[1743419235798,0.543448,82153.0,82152.0,0.083]
[1743419235997,0.543448,82153.0,82152.0,0.20560386]
[1743419236235,0.243448,82153.0,82152.0,0.20560386]
[1743419236586,0.243439,82156.0,82152.0,0.21920986]
[1743419236758,0.243427,82160.0,82159.0,0.0794]
[1743419236977,0.243427,82160.0,82159.0,0.20200386]
[1743419237175,0.243427,82160.0,82159.0,0.20190265]
[1743419237709,0.012169,82171.0,82160.0,0.0465]
[1743419237933,0.243424,82161.0,82160.0,0.0465]
[1743419238166,0.243424,82161.0,82160.0,0.16910386]
[1743419238379,0.255595,82161.0,82160.0,0.13620986]
[1743419238996,0.255595,82161.0,82160.0,0.12260386]
[1743419239312,0.257595,82161.0,82160.0,0.13620986]
[1743419239513,0.256595,82161.0,82160.0,0.13620986]
[1743419239714,0.256595,82161.0,82160.0,0.16063666]
[1743419239918,0.258595,82161.0,82160.0,0.16063666]
[1743419240598,0.257595,82161.0,82160.0,0.16063666]
[1743419240824,0.259595,82161.0,82160.0,0.16063666]
[1743419241354,0.247424,82161.0,82160.0,0.16063666]
[1743419242592,0.002,82161.0,82160.0,0.16063666]
[1743419242826,0.002,82161.0,82160.0,0.95656859]
[1743419243030,0.002,82161.0,82160.0,1.09909466]
[1743419243494,0.243387,82174.0,82169.0,0.2434]
[1743419243748,0.243385,82174.0,82171.0,0.243394]
[1743419243976,0.243385,82175.0,82172.0,0.36599486]
[1743419244188,0.243377,82177.0,82173.0,0.243388]
[1743419244391,0.243377,82177.0,82174.0,0.26756386]
[1743419244599,0.24338,82176.0,82174.0,0.26756386]
[1743419244839,0.24338,82176.0,82175.0,0.01351981]
[1743419245044,0.243373,82179.0,82175.0,0.37950367]
[1743419245248,0.243376,82178.0,82176.0,0.12260386]
[1743419245450,0.247377,82177.0,82176.0,0.12260386]
[1743419245652,0.004,82177.0,82176.0,0.36598386]
[1743419245807,0.002,82177.0,82176.0,0.50475286]
[1743419246613,0.10852286,82186.0,82185.0,0.012167]
[1743419246817,0.10852286,82186.0,82185.0,0.37812386]
[1743419247575,0.24332,82196.0,82193.0,0.243329]
[1743419247818,0.255489,82195.0,82194.0,0.12260386]
[1743419248796,0.255489,82195.0,82192.0,0.14492]
[1743419248797,0.255495,82193.0,82192.0,0.14492]
[1743419248999,0.255495,82193.0,82183.0,0.083]
[1743419249000,0.25552,82185.0,82183.0,0.083]
[1743419249246,0.25552,82185.0,82184.0,0.75452386]
[1743419250360,0.25552,82185.0,82184.0,0.63192]
[1743419250711,0.255539,82179.0,82178.0,0.0804]
[1743419250916,0.255539,82179.0,82178.0,0.20300386]
[1743419252119,0.243365,82181.0,82178.0,0.44637786]
[1743419252304,0.012168,82182.0,82179.0,0.12260386]
[1743419252864,0.243368,82181.0,82179.0,0.12260386]
[1743419253435,0.243368,82180.0,82179.0,0.12260386]
[1743419253634,0.243368,82181.0,82179.0,0.12260386]
[1743419254956,0.243368,82181.0,82179.0,0.12360386]
[1743419255190,0.255536,82180.0,82179.0,0.001]
[1743419255995,0.555536,82180.0,82179.0,0.001]
[1743419256197,0.255576,82167.0,82166.0,0.77672]
[1743419256397,0.255576,82167.0,82166.0,0.89946451]
[1743419256654,0.255576,82167.0,82166.0,0.91284709]
[1743419257179,0.255576,82167.0,82166.0,0.66989093]
[1743419257580,0.555576,82167.0,82166.0,0.01352323]
[1743419257791,0.5647163,82167.0,82166.0,0.01352323]
[1743419258020,0.5647163,82167.0,82166.0,0.00014065]
[1743419259036,0.5647163,82167.0,82166.0,0.00114065]
[1743419259239,0.5647163,82167.0,82166.0,0.00014065]
[1743419259494,0.5667163,82167.0,82166.0,0.00014065]
[1743419259694,0.557576,82167.0,82166.0,0.00014065]
[1743419260091,0.557576,82167.0,82166.0,0.01359347]
[1743419261089,0.302,82167.0,82166.0,0.21839733]
[1743419261227,0.302,82167.0,82166.0,0.46180633]
[1743419261584,0.302,82167.0,82166.0,0.21839733]
[1743419262480,0.002,82167.0,82166.0,0.60668633]
[1743419262631,0.002,82167.0,82166.0,0.61885633]
[1743419263240,0.001,82167.0,82166.0,0.61885633]
[1743419263587,0.543375,82178.0,82174.0,0.255552]
[1743419263788,0.543375,82178.0,82175.0,0.36598586]
[1743419264038,0.543375,82178.0,82175.0,0.3794322]
[1743419264184,0.3,82178.0,82176.0,0.388259]
[1743419264560,0.543368,82180.0,82177.0,0.36597886]
[1743419264964,0.543368,82180.0,82178.0,0.01344634]
[1743419265171,0.543368,82180.0,82179.0,0.12260386]
[1743419265709,0.546368,82180.0,82179.0,0.13606999]
[1743419265912,0.543368,82180.0,82179.0,0.13606999]
[1743419266343,0.546368,82180.0,82179.0,0.13606999]
[1743419266512,0.549368,82180.0,82179.0,0.13606999]
[1743419268174,0.006,82180.0,82179.0,0.13606999]
[1743419268396,0.006,82180.0,82179.0,0.40367719]
[1743419268598,0.249368,82180.0,82179.0,0.16030619]
[1743419268803,0.006,82180.0,82179.0,0.40367719]
[1743419269007,0.006,82180.0,82179.0,0.41584519]
[1743419269503,0.006,82180.0,82179.0,0.16030619]
[1743419269793,0.006,82180.0,82179.0,0.40367719]
[1743419271506,0.006,82180.0,82179.0,0.41584519]
[1743419272656,0.243364,82182.0,82179.0,0.41584519]
[1743419272923,0.243361,82183.0,82180.0,0.243367]
[1743419273141,0.243361,82183.0,82181.0,0.12260386]
[1743419273615,0.243361,82183.0,82182.0,0.01346613]
[1743419273846,0.243361,82183.0,82182.0,0.13606999]
[1743419274806,0.255523,82184.0,82182.0,0.13606999]
[1743419274807,0.243357,82184.0,82182.0,0.13606999]
[1743419275042,0.255515,82187.0,82183.0,0.12260386]
[1743419275043,0.3,82186.0,82183.0,0.12260386]
[1743419275280,0.243356,82184.0,82183.0,0.12260386]
[1743419275512,0.243353,82185.0,82184.0,0.01346236]
[1743419275760,0.3,82186.0,82184.0,0.12260386]
[1743419276003,0.243328,82194.0,82187.0,0.243347]
[1743419276004,0.3,82188.0,82187.0,0.243347]
[1743419276249,0.543328,82194.0,82191.0,0.243333]
[1743419276487,0.3,82194.0,82192.0,0.243332]
[1743419276723,0.543328,82194.0,82191.0,0.36593786]
[1743419276947,0.3,82192.0,82191.0,0.12260386]
[1743419277185,0.555498,82192.0,82191.0,0.12260386]
[1743419278187,0.543332,82192.0,82191.0,0.12260386]
[1743419278829,0.545332,82192.0,82191.0,0.12260386]
[1743419279029,0.547332,82192.0,82191.0,0.12260386]
[1743419279520,0.559498,82192.0,82191.0,0.12260386]
[1743419281210,0.57089352,82192.0,82191.0,0.12260386]
[1743419281416,0.27089352,82192.0,82191.0,0.12260386]
[1743419281800,0.25872752,82192.0,82191.0,0.12260386]
[1743419282184,0.247332,82192.0,82191.0,0.12260386]
[1743419282383,0.004,82192.0,82191.0,0.37810486]
[1743419282587,0.02678969,82192.0,82191.0,0.37810486]
[1743419283343,0.004,82192.0,82191.0,0.12260386]
[1743419283551,0.259498,82192.0,82191.0,0.12260386]
[1743419284073,0.2708887,82192.0,82191.0,0.12260386]
[1743419284188,0.2688887,82192.0,82191.0,0.12260386]
[1743419284620,0.2668887,82192.0,82191.0,0.12260386]
[1743419285454,0.243363,82182.0,82178.0,0.012168]
[1743419285695,0.255536,82180.0,82176.0,0.6318]
[1743419286457,0.255545,82177.0,82176.0,0.6318]
[1743419286851,0.555545,82177.0,82176.0,0.65569669]
[1743419287074,0.5669357,82177.0,82176.0,0.65569669]
[1743419287451,0.58971515,82177.0,82176.0,0.65569669]
[1743419289534,0.59906897,82177.0,82176.0,0.65569669]
[1743419290133,0.59906897,82177.0,82176.0,0.6318]
[1743419290134,0.62687398,82177.0,82176.0,0.6318]
[1743419290335,0.59906897,82177.0,82176.0,0.64516303]
[1743419290713,0.58690097,82177.0,82176.0,0.64516303]
[1743419290918,0.34352397,82177.0,82176.0,0.64516303]
[1743419291119,0.58690097,82177.0,82176.0,0.64516303]
[1743419291267,0.59906897,82177.0,82176.0,0.64516303]
[1743419291777,0.60106897,82177.0,82176.0,0.64516303]
[1743419292184,0.60306897,82177.0,82176.0,0.64516303]
[1743419292568,0.59371515,82177.0,82176.0,0.76776689]
[1743419292988,0.33817015,82177.0,82176.0,0.76776689]
[1743419293189,0.0153907,82177.0,82176.0,0.76776689]
[1743419293407,0.0153907,82177.0,82176.0,1.01114689]
[1743419293613,0.0153907,82177.0,82176.0,1.02331589]
[1743419294186,0.002,82177.0,82176.0,1.02331589]
[1743419294672,0.012168,82182.0,82178.0,0.243372]
[1743419294907,0.243364,82182.0,82179.0,0.36597386]
[1743419295175,0.012167,82183.0,82179.0,0.1360229]
[1743419295409,0.255533,82181.0,82179.0,0.1360229]
[1743419295613,0.243368,82180.0,82179.0,0.1360229]
[1743419295820,0.255536,82180.0,82179.0,0.01341904]
[1743419296065,0.255545,82177.0,82176.0,0.7766]
[1743419297179,0.27835206,82177.0,82176.0,0.7766]
[1743419298060,0.28035206,82177.0,82176.0,0.7766]
[1743419298196,0.29175594,82177.0,82176.0,0.7766]
[1743419298426,0.29175594,82177.0,82176.0,0.6318]
[1743419298821,0.29375594,82177.0,82176.0,0.6318]
[1743419299965,0.255549,82176.0,82175.0,0.02497036]
[1743419300417,0.255549,82176.0,82165.0,0.63184]
[1743419300418,0.255579,82166.0,82165.0,0.63184]
[1743419300570,0.255579,82166.0,82165.0,0.89938451]
[1743419301174,0.26770101,82166.0,82165.0,0.92378778]
[1743419301379,0.26770101,82166.0,82165.0,0.65638392]
[1743419301577,0.56770101,82166.0,82165.0,0.63198065]
[1743419301786,0.69030487,82166.0,82165.0,0.63198065]
[1743419301986,0.71311193,82166.0,82165.0,0.63198065]
[1743419302254,0.75112846,82166.0,82165.0,0.00014065]
[1743419302473,0.71311193,82166.0,82165.0,0.00014065]
[1743419303246,1.42362528,82166.0,82165.0,6.5e-07]
[1743419303537,0.7847066,82166.0,82165.0,6.5e-07]
[1743419304601,0.7867066,82166.0,82165.0,6.5e-07]
[1743419305337,0.76389954,82166.0,82165.0,6.5e-07]
[1743419305755,0.76589954,82166.0,82165.0,6.5e-07]
[1743419306211,1.17929954,82166.0,82165.0,6.5e-07]
[1743419307417,1.14130204,82166.0,82165.0,6.5e-07]
[1743419309244,1.12224572,82166.0,82165.0,6.5e-07]
[1743419310450,0.97293101,82166.0,82165.0,6.5e-07]
[1743419310661,0.98510101,82166.0,82165.0,6.5e-07]
[1743419311406,0.98510101,82166.0,82165.0,0.02456417]
[1743419317998,0.57170101,82166.0,82165.0,0.02456417]
[1743419318809,0.57170101,82166.0,82165.0,6.5e-07]
[1743419319009,0.70884572,82166.0,82165.0,6.5e-07]
[1743419324359,0.57170101,82166.0,82165.0,6.5e-07]
[1743419330928,0.59451619,82166.0,82165.0,6.5e-07]
[1743419331366,0.60592374,82166.0,82165.0,6.5e-07]
[1743419332608,0.255601,82159.0,82158.0,0.02388322]
[1743419334130,0.26700855,82159.0,82158.0,0.02388322]
[1743419334363,0.28982373,82159.0,82158.0,0.02388322]
[1743419335555,0.31314313,82159.0,82158.0,0.02388322]
[1743419336587,0.28982373,82159.0,82158.0,0.02388322]
[1743419336788,0.255636,82148.0,82147.0,0.0806]
[1743419337144,0.255636,82148.0,82147.0,0.09400628]
[1743419337344,0.27845118,82148.0,82147.0,0.09400628]
[1743419338319,0.27845118,82148.0,82147.0,0.01340628]
[1743419338667,0.27845118,82148.0,82147.0,0.037449]
[1743419338869,0.27561552,82148.0,82147.0,0.037449]